Workbook

Sheet 经济困难失能老年人入住养老机构补贴
A1: 2025年10月经济困难失能老年人入住养老机构补贴（23）人
A2: 序号 | B2: 初始及变动日期 | C2: 初始及增减变动情况 | D2: 乡镇 | E2: 姓名 | F2: 性别 | G2: 入住养老机构 | H2: 入住评估等级 | I2: 机构原本收费 | J2: 本地集中供养特困人员基本生活标准及全护理照料标准总和（元） | K2: 最低生活保障金（元） | L2: 80周岁以上低保老龄人高龄补贴（元） | M2: 80周岁以上高龄补贴 | N2: 困难残疾人生活补贴（元） | O2: 重度残疾人护理补贴（元） | P2: 完全失能老年人护理补贴（元） | Q2: 入住老年人床位补助（元） | R2: 享受行政给付合计（元） | S2: 发放金额（元）
A3: =ROW()-2 -> 1 | B3: 20240301 | C3: 初始 | D3: 龙门镇 | E3: 廖*琼 | F3: 女 | G3: 明爱福利养老院龙人伍心家园 | H3: 3级 | J3: 3182 | K3: 592 | L3: 100 | M3: 100 | N3: 130 | O3: 0 | P3: 300 | Q3: 1000 | R3: =SUM(K3:Q3) -> 2222 | S3: =J3-R3 -> 960
A4: =ROW()-2 -> 2 | B4: 20240301 | C4: 初始 | D4: 龙门镇 | E4: 白*南 | F4: 男 | G4: 安溪和兴老年医疗养护中心 | H4: 3级 | J4: 3182 | K4: 845 | L4: 0 | M4: 0 | N4: 130 | O4: 0 | P4: 300 | Q4: 1000 | R4: =SUM(K4:Q4) -> 2275 | S4: =J4-R4 -> 907
A5: =ROW()-2 -> 3 | B5: 20240301 | C5: 初始 | D5: 蓬莱镇 | E5: 姚*梅 | F5: 女 | G5: 安溪温馨壹家养老服务公司 | H5: 4级 | J5: 3182 | K5: 423 | L5: 0 | M5: 0 | N5: 130 | O5: 0 | P5: 300 | Q5: 1000 | R5: =SUM(K5:Q5) -> 1853 | S5: =J5-R5 -> 1329
A6: 4 | B6: 20240301 | C6: 初始 | D6: 凤城镇 | E6: 陈*彩 | F6: 女 | G6: 明爱福利养老院龙人伍心家园 | H6: 4级 | J6: 3182 | K6: 845 | L6: 100 | M6: 100 | N6: 130 | O6: 0 | P6: 300 | Q6: 1000 | R6: =SUM(K6:Q6) -> 2475 | S6: =J6-R6 -> 707
A7: 5 | B7: 20240701 | C7: 新增 | D7: 魁斗镇 | E7: 林*珍 | F7: 女 | G7: 安溪伍心祥爱养老服务有限公司 | H7: 3级 | J7: 3182 | K7: 592 | L7: 0 | M7: 0 | N7: 130 | O7: 0 | P7: 300 | Q7: 1000 | R7: =SUM(K7:Q7) -> 2022 | S7: =J7-R7 -> 1160
A8: 6 | B8: 20240901 | C8: 新增 | D8: 金谷镇 | E8: 李*淡 | F8: 男 | G8: 明爱福利养老院龙人伍心家园 | H8: 4级 | I8: 4700 | J8: 3182 | K8: 845 | L8: 0 | M8: 0 | N8: 130 | O8: 0 | P8: 300 | Q8: 1000 | R8: =SUM(K8:Q8) -> 2275 | S8: =J8-R8 -> 907
A9: 7 | B9: 20241001 | C9: 新增 | D9: 金谷镇 | E9: 苏*珍 | F9: 女 | G9: 安溪温馨壹家养老服务公司 | H9: 4级 | J9: 3182 | K9: 423 | L9: 0 | M9: 0 | N9: 130 | O9: 0 | P9: 300 | Q9: 1000 | R9: 1853 | S9: 1329
A10: 8 | B10: 20241001 | C10: 新增 | D10: 蓬莱镇 | E10: 林*元 | F10: 男 | G10: 明爱福利养老院龙人伍心家园 | H10: 3级 | J10: 3182 | K10: 845 | L10: 0 | M10: 0 | N10: 130 | O10: 0 | P10: 300 | Q10: 1000 | R10: 2275 | S10: 907
A11: 9 | B11: 20250201 | C11: 新增 | D11: 虎邱镇 | E11: 黄*惜 | F11: 女 | G11: 安溪伍心壹家养老服务公司 | H11: 3级 | I11: 2900 | J11: 3182 | K11: 845 | L11: 0 | M11: 0 | N11: 130 | O11: 0 | P11: 300 | Q11: 1000 | R11: 2275 | S11: 907
A12: 10 | B12: 20250401 | C12: 新增 | D12: 官桥镇 | E12: 林*花 | F12: 女 | G12: 明爱福利养老院龙人伍心家园 | H12: 3级 | J12: 3182 | K12: 845 | L12: 0 | M12: 0 | N12: 130 | O12: 121 | P12: 0 | Q12: 1000 | R12: 2096 | S12: 1086
A13: 11 | B13: 20250401 | C13: 新增 | D13: 虎邱镇 | E13: 林* | F13: 女 | G13: 安溪伍心壹家养老服务公司 | H13: 3级 | J13: 3182 | K13: 845 | L13: 100 | M13: 50 | N13: 0 | O13: 0 | P13: 0 | Q13: 1000 | R13: 1995 | S13: 1187
A14: 12 | B14: 20250501 | C14: 新增 | D14: 祥华乡 | E14: 詹*炎 | F14: 男 | G14: 明爱福利养老院龙人伍心家园 | H14: 3级 | J14: 3182 | K14: 845 | L14: 0 | M14: 0 | N14: 130 | O14: 145 | P14: 0 | Q14: 1000 | R14: 2120 | S14: 1062
A15: =ROW()-2 -> 13 | B15: 20250601 | C15: 新增 | D15: 祥华乡 | E15: 詹*根 | F15: 男 | G15: 明爱福利养老院龙人伍心家园 | H15: 1级 | I15: 3400 | J15: 3182 | K15: 845 | L15: 100 | M15: 50 | N15: 130 | O15: 0 | P15: 0 | Q15: 750 | R15: 1875 | S15: 1307
A16: 14 | B16: 20250701 | C16: 新增 | D16: 感德镇 | E16: 陈*金 | F16: 男 | G16: 明爱福利养老院龙人伍心家园 | H16: 4级 | I16: 5700（4级双人间） | J16: 3182 | K16: 845 | L16: 0 | M16: 0 | N16: 0 | O16: 0 | P16: 300 | Q16: 1000 | R16: 2145 | S16: 1037
A17: 15 | B17: 20250801 | C17: 新增 | D17: 金谷镇 | E17: 郑*辉 | F17: 女 | G17: 明爱福利养老院龙人伍心家园 | H17: 3级 | I17: 4300 | J17: 3182 | K17: 592 | L17: 0 | M17: 0 | N17: 130 | O17: 121 | P17: 0 | Q17: 1000 | R17: 1843 | S17: 1339
A18: 16 | B18: 20250901 | C18: 新增 | D18: 蓝田乡 | E18: 徐*都 | F18: 男 | G18: 明爱福利养老院龙人伍心家园 | H18: 3级 | J18: 3182 | K18: 845 | L18: 100 | M18: 50 | N18: 0 | O18: 0 | P18: 0 | Q18: 1000 | R18: =SUM(K18:Q18) -> 1995 | S18: =J18-R18 -> 1187
A19: 17 | B19: 20250901 | C19: 新增 | D19: 官桥镇 | E19: 林*金 | F19: 男 | G19: 明爱福利养老院龙人伍心家园 | H19: 4级 | J19: 3182 | K19: 845 | L19: 0 | M19: 0 | N19: 130 | O19: 0 | P19: 300 | Q19: 1000 | R19: 2275 | S19: 907
A20: 18 | B20: 20250901 | C20: 新增 | D20: 金谷镇 | E20: 陈*达 | F20: 男 | G20: 明爱福利养老院龙人伍心家园 | H20: 3级 | J20: 3182 | K20: 845 | L20: 0 | M20: 0 | N20: 130 | O20: 121 | P20: 0 | Q20: 1000 | R20: 2096 | S20: 1086
A21: 19 | B21: 20250901 | C21: 新增 | D21: 魁斗镇 | E21: 易*营 | F21: 男 | G21: 安溪伍心祥爱养老服务有限公司 | H21: 3级 | J21: 3182 | K21: 845 | L21: 0 | M21: 0 | N21: 0 | O21: 0 | P21: 0 | Q21: 1000 | R21: 1845 | S21: 1337
A22: 20 | B22: 20250901 | C22: 新增 | D22: 金谷镇 | E22: 洪*彬 | F22: 男 | G22: 安溪伍心乐享养老服务有限公司 | H22: 4级 | J22: 3182 | K22: 845 | L22: 0 | M22: 0 | N22: 130 | O22: 121 | P22: 0 | Q22: 1000 | R22: 2096 | S22: 1086
A23: 21 | B23: 20250901 | C23: 新增 | D23: 湖头镇 | E23: 李* | F23: 女 | G23: 安溪伍心乐享养老服务有限公司 | H23: 4级 | J23: 3182 | K23: 845 | L23: 100 | M23: 50 | N23: 130 | O23: 145 | P23: 0 | Q23: 1000 | R23: 2270 | S23: 912
A24: 22 | B24: 20250901 | C24: 新增 | D24: 蓬莱镇 | E24: 刘*从 | F24: 男 | G24: 安溪温馨壹家养老服务公司 | H24: 4级 | J24: 3182 | K24: 423 | L24: 0 | M24: 0 | N24: 130 | O24: 121 | P24: 0 | Q24: 1000 | R24: 1674 | S24: 1508
A25: 23 | B25: 20250901 | C25: 新增 | D25: 蓬莱镇 | E25: 傅* | F25: 女 | G25: 明爱福利养老院龙人伍心家园 | H25: 3级 | J25: 3182 | K25: 845 | L25: 100 | M25: 50 | N25: 130 | O25: 0 | P25: 300 | Q25: 1000 | R25: 2425 | S25: 757
